fUST/lending_fUST_20250126
["ID","MTS","AMOUNT","RATE_DAILY","PERIOD"]
[350393187,1737827443039,-66.93778476,0.00016575,2]
[350393192,1737827443160,-1094.96,0.00016575,2]
[350393195,1737827443170,-500.0,0.00016575,2]
[350393198,1737827443179,-500.0,0.00016575,2]
[350393201,1737827443188,-573.39,0.00016575,2]
[350393204,1737827443197,-500.0,0.00016575,2]
[350393207,1737827443206,-6607.77,0.00016575,2]
[350393209,1737827443216,-500.0,0.00016575,2]
[350393211,1737827443225,-500.0,0.00016575,2]
[350393213,1737827443234,-500.0,0.00016575,2]
[350393215,1737827443243,-1076.16,0.00016575,2]
[350393217,1737827443252,-500.0,0.00016575,2]
[350393218,1737827443262,-500.0,0.00016575,2]
[350393220,1737827443271,-500.0,0.00016575,2]
[350393222,1737827443280,-500.0,0.00016575,2]
[350393225,1737827443289,-1422.61,0.00016575,2]
[350393227,1737827443298,-547.14,0.00016575,2]
[350393229,1737827443307,-551.97,0.00016575,2]
[350393231,1737827443317,-506.48,0.00016575,2]
[350393233,1737827443326,-1415.11,0.00016575,2]
[350393235,1737827443335,-500.0,0.00016575,2]
[350393237,1737827443345,-500.0,0.00016575,2]
[350393239,1737827443354,-2552.86,0.00016575,2]
[350393241,1737827443364,-500.0,0.00016575,2]
[350393243,1737827443373,-19665.7,0.00016575,2]
[350393245,1737827443382,-500.0,0.00016575,2]
[350393247,1737827443391,-1298.76,0.00016575,2]
[350393249,1737827443400,-1280.97,0.00016575,2]
[350393251,1737827443410,-500.0,0.00016575,2]
[350393253,1737827443419,-500.0,0.00016575,2]
[350393255,1737827443428,-500.0,0.00016575,2]
[350393257,1737827443437,-500.0,0.00016575,7]
[350393259,1737827443447,-673.68,0.00016575,2]
[350393261,1737827443456,-665.58,0.00016575,2]
[350393263,1737827443466,-500.0,0.00016575,2]
[350393265,1737827443475,-556.61,0.00016575,2]
[350393267,1737827443484,-1587.33,0.00016575,2]
[350393269,1737827443493,-500.0,0.00016575,2]
[350393271,1737827443502,-500.0,0.00016575,2]
[350393273,1737827443512,-835.55,0.00016575,2]
[350393275,1737827443522,-500.0,0.00016575,2]
[350393277,1737827443531,-886.95,0.00016575,2]
[350393279,1737827443540,-690.69,0.00016575,2]
[350393281,1737827443550,-7180.74,0.00016575,2]
[350393283,1737827443559,-555.32,0.00016575,2]
[350393285,1737827443569,-907.76,0.00016575,2]
[350393288,1737827443582,-981.99,0.00016575,2]
[350393290,1737827443595,-500.0,0.00016575,2]
[350393293,1737827443608,-615.83,0.00016575,2]
[350393295,1737827443620,-500.0,0.00016712,2]
[350393298,1737827443632,-500.0,0.00016712,2]
[350393301,1737827443643,-500.0,0.00016712,2]
[350393303,1737827443653,-500.0,0.00016712,2]
[350393305,1737827443666,-500.0,0.00016712,2]
[350393307,1737827443679,-500.0,0.00016712,2]
[350393310,1737827443690,-500.0,0.00016712,2]
[350393312,1737827443701,-500.0,0.00016712,2]
[350393314,1737827443713,-500.0,0.00016712,2]
[350393316,1737827443725,-500.0,0.00016712,2]
[350393319,1737827443737,-500.0,0.00016712,2]
[350393321,1737827443749,-500.0,0.00016712,2]
[350393323,1737827443761,-500.0,0.00016712,2]
[350393326,1737827443773,-500.0,0.00016712,2]
[350393328,1737827443785,-861.47,0.00016712,2]
[350393330,1737827443797,-500.0,0.00016712,2]
[350393333,1737827443808,-500.0,0.00016712,2]
[350393335,1737827443820,-500.0,0.00016712,2]
[350393337,1737827443830,-500.0,0.00016712,2]
[350393339,1737827443841,-500.0,0.00016712,2]
[350393342,1737827443854,-500.0,0.00016712,2]
[350393344,1737827443864,-500.0,0.00016712,2]
[350393346,1737827443876,-500.0,0.00016712,2]
[350393348,1737827443888,-500.0,0.00016712,2]
[350393351,1737827443900,-500.0,0.00016712,2]
[350393353,1737827443911,-872.2,0.00016712,2]
[350393355,1737827443926,-500.0,0.00016712,2]
[350393357,1737827443936,-500.0,0.00016712,2]
[350393359,1737827443947,-500.0,0.00016712,2]
[350393361,1737827443958,-500.0,0.00016712,2]
[350393364,1737827443970,-500.0,0.00016712,2]
[350393366,1737827443979,-500.0,0.00016712,2]
[350393368,1737827443992,-500.0,0.00016712,2]
[350393370,1737827444004,-500.0,0.00016712,2]
[350393373,1737827444015,-518.71,0.00016712,2]
[350393375,1737827444028,-500.0,0.00016712,2]
[350393377,1737827444040,-500.0,0.00016712,2]
[350393379,1737827444051,-500.0,0.00016712,2]
[350393382,1737827444063,-500.0,0.00016712,2]
[350393384,1737827444077,-500.0,0.00016712,2]
[350393386,1737827444089,-1098.53,0.00016712,2]
[350393389,1737827444102,-500.0,0.00016712,2]
[350393391,1737827444115,-500.0,0.00016712,2]
[350393393,1737827444126,-500.0,0.00016712,2]
[350393396,1737827444136,-1693.23,0.00016712,2]
[350393398,1737827444147,-500.0,0.00016712,2]
[350393400,1737827444157,-859.51,0.00016712,2]
[350393402,1737827444167,-500.0,0.00016712,2]
[350393404,1737827444178,-2895.04,0.00016712,2]
[350393406,1737827444189,-809.57,0.00016712,2]
[350393408,1737827444202,-500.0,0.00016712,2]
[350393411,1737827444214,-500.0,0.00016712,2]
[350393413,1737827444228,-674.42,0.00016712,2]
[350393415,1737827444239,-500.0,0.00016712,2]
[350393417,1737827444249,-1586.72,0.00016712,2]
[350393419,1737827444260,-500.0,0.00016712,2]
[350393422,1737827444270,-1094.96,0.00016712,2]
[350393424,1737827444280,-500.0,0.00016712,2]
[350393426,1737827444292,-500.0,0.00016712,2]
[350393428,1737827444303,-573.39,0.00016712,2]
[350393430,1737827444313,-6607.77,0.00016712,2]
[350393432,1737827444324,-500.0,0.00016712,2]
[350393435,1737827444334,-500.0,0.00016712,2]
[350393437,1737827444345,-500.0,0.00016712,2]
[350393439,1737827444355,-1076.16,0.00016712,2]
[350393441,1737827444366,-216.37,0.00016712,2]
[350393443,1737827444376,-292.85581147,0.00016712,2]
[350393445,1737827444387,-500.0,0.00016712,2]
[350393447,1737827444398,-1422.61,0.00016712,2]
[350393450,1737827444408,-547.14,0.00016712,2]
[350393452,1737827444420,-551.97,0.00016712,2]
[350393454,1737827444430,-506.48,0.00016712,2]
[350393456,1737827444441,-1415.11,0.00016712,2]
[350393458,1737827444451,-500.0,0.00016712,2]
[350393461,1737827444462,-500.0,0.00016712,2]
[350393463,1737827444472,-2552.86,0.00016712,2]
[350393465,1737827444483,-365.71458528,0.00016712,2]
[350393467,1737827444494,-19665.7,0.00016712,2]
[350393469,1737827444504,-500.0,0.00016712,2]
[350393471,1737827444516,-1298.76,0.00016712,2]
[350393473,1737827444526,-1280.97,0.00016712,2]
[350393476,1737827444537,-500.0,0.00016712,2]
[350393478,1737827444547,-500.0,0.00016712,2]
[350393480,1737827444558,-673.68,0.00016712,2]
[350393482,1737827444568,-665.58,0.00016712,2]
[350393484,1737827444579,-500.0,0.00016712,2]
[350393486,1737827444590,-556.61,0.00016712,2]
[350393488,1737827444601,-1587.33,0.00016712,2]
[350393490,1737827444612,-540.94210851,0.00016712,2]
[350393493,1737827444623,-500.0,0.00016712,2]
[350393495,1737827444634,-835.55,0.00016712,2]
[350393497,1737827444646,-618.52,0.00016712,2]
[350393499,1737827444658,-886.95,0.00016712,2]
[350393501,1737827444669,-690.69,0.00016712,2]
[350393503,1737827444680,-7180.74,0.00016712,2]
[350393505,1737827444690,-907.76,0.00016712,2]
[350393508,1737827444700,-981.99,0.00016712,2]
[350393510,1737827444711,-615.83,0.00016712,2]
[350393512,1737827444722,-500.0,0.00016849,2]
[350393514,1737827444733,-500.0,0.00016849,2]
[350393516,1737827444744,-500.0,0.00016849,2]
[350393518,1737827444754,-500.0,0.00016849,2]
[350393520,1737827444764,-500.0,0.00016849,2]
[350393523,1737827444775,-500.0,0.00016849,2]
[350393525,1737827444785,-500.0,0.00016849,2]
[350393527,1737827444795,-500.0,0.00016849,2]
[350393529,1737827444806,-500.0,0.00016849,2]
[350393531,1737827444817,-500.0,0.00016849,2]
[350393533,1737827444827,-500.0,0.00016849,2]
[350393535,1737827444838,-500.0,0.00016849,2]
[350393538,1737827444849,-500.0,0.00016849,2]
[350393540,1737827444859,-500.0,0.00016849,2]
[350393542,1737827444870,-861.47,0.00016849,2]
[350393544,1737827444881,-419.39827408,0.00016849,2]
[350393546,1737827444891,-500.0,0.00016849,2]
[350393548,1737827444902,-500.0,0.00016849,2]
[350393550,1737827444913,-500.0,0.00016849,2]
[350393553,1737827444928,-500.0,0.00016849,2]
[350393555,1737827444938,-500.0,0.00016849,2]
[350393557,1737827444949,-500.0,0.00016849,2]
[350393559,1737827444960,-500.0,0.00016849,2]
[350393561,1737827444972,-500.0,0.00016849,2]
[350393564,1737827444982,-500.0,0.00016849,2]
[350393566,1737827444992,-872.2,0.00016849,2]
[350393567,1737827445004,-500.0,0.00016849,2]
[350393568,1737827445014,-500.0,0.00016849,2]
[350393569,1737827445025,-500.0,0.00016849,2]
[350393570,1737827445035,-500.0,0.00016849,2]
[350393571,1737827445046,-500.0,0.00016849,2]
[350393572,1737827445056,-500.0,0.00016849,2]
[350393573,1737827445067,-407.18015649,0.00016849,2]
[350393574,1737827445077,-500.0,0.00016849,2]
[350393575,1737827445090,-518.71,0.00016849,2]
[350393576,1737827445100,-500.0,0.00016849,2]
[350393577,1737827445111,-500.0,0.00016849,2]
[350393578,1737827445122,-500.0,0.00016849,2]
[350393580,1737827445133,-500.0,0.00016849,2]
[350393582,1737827445143,-500.0,0.00016849,2]
[350393584,1737827445154,-1098.53,0.00016849,2]
[350393587,1737827445165,-500.0,0.00016849,2]
[350393589,1737827445176,-500.0,0.00016849,2]
[350393591,1737827445186,-500.0,0.00016849,2]
[350393593,1737827445196,-1693.23,0.00016849,2]
[350393595,1737827445206,-500.0,0.00016849,2]
[350393597,1737827445215,-859.51,0.00016849,2]
[350393599,1737827445225,-620.79681518,0.00016849,2]
[350393601,1737827445234,-2895.04,0.00016849,2]
[350393603,1737827445244,-809.57,0.00016849,2]
[350393605,1737827445254,-500.0,0.00016849,2]
[350393607,1737827445264,-500.0,0.00016849,2]
[350393629,1737827445452,-674.42,0.00016849,2]
[350393632,1737827445469,-1586.72,0.00016849,2]
[350393633,1737827445478,-500.0,0.00016849,2]
[350393635,1737827445488,-1094.96,0.00016849,2]
[350393638,1737827445498,-500.0,0.00016849,2]
[350393640,1737827445507,-500.0,0.00016849,2]
[350393641,1737827445516,-573.39,0.00016849,2]
[350393644,1737827445526,-6607.77,0.00016849,2]
[350393645,1737827445535,-500.0,0.00016849,2]
[350393648,1737827445545,-500.0,0.00016849,2]
[350393650,1737827445555,-500.0,0.00016849,2]
[350393652,1737827445564,-1076.16,0.00016849,2]
[350393653,1737827445574,-242.4466746,0.00016849,2]
[350393656,1737827445583,-1422.61,0.00016849,2]
[350393658,1737827445593,-547.14,0.00016849,2]
[350393660,1737827445603,-551.97,0.00016849,2]
[350393662,1737827445612,-506.48,0.00016849,2]
[350393664,1737827445622,-1415.11,0.00016849,2]
[350393666,1737827445631,-500.0,0.00016849,2]
[350393668,1737827445641,-500.0,0.00016849,2]
[350393670,1737827445651,-2552.86,0.00016849,2]
[350393672,1737827445661,-19665.7,0.00016849,2]
[350393674,1737827445671,-500.0,0.00016849,2]
[350393676,1737827445680,-1298.76,0.00016849,2]
[350393678,1737827445689,-1280.97,0.00016849,2]
[350393680,1737827445698,-500.0,0.00016849,2]
[350393682,1737827445707,-673.68,0.00016849,2]
[350393684,1737827445716,-665.58,0.00016849,2]
[350393686,1737827445725,-500.0,0.00016849,2]
[350393688,1737827445735,-556.61,0.00016849,2]
[350393690,1737827445744,-1587.33,0.00016849,2]
[350393692,1737827445753,-500.0,0.00016849,2]
[350393694,1737827445763,-835.55,0.00016849,2]
[350393696,1737827445773,-886.95,0.00016849,2]
[350393698,1737827445782,-690.69,0.00016849,2]
[350393700,1737827445791,-7180.74,0.00016849,2]
[350393702,1737827445800,-907.76,0.00016849,2]
[350393704,1737827445810,-981.99,0.00016849,2]
[350393706,1737827445819,-615.83,0.00016849,2]
[350393708,1737827445828,-500.0,0.000169,2]
[350393710,1737827445837,-500.0,0.00016986,2]
[350393712,1737827445847,-500.0,0.00016986,2]
[350393714,1737827445856,-500.0,0.00016986,2]
[350393716,1737827445865,-500.0,0.00016986,2]
[350393718,1737827445874,-499.9,0.00016986,2]
[350393720,1737827445883,-500.0,0.00016986,2]
[350393722,1737827445894,-500.0,0.00016986,2]
[350393724,1737827445903,-500.0,0.00016986,2]
[350393726,1737827445912,-500.0,0.00016986,2]
[350393728,1737827445927,-500.0,0.00016986,2]
[350393730,1737827445936,-500.0,0.00016986,2]
[350393732,1737827445946,-500.0,0.00016986,2]
[350393734,1737827445955,-500.0,0.00016986,2]
[350393736,1737827445966,-500.0,0.00016986,2]
[350393738,1737827445975,-861.47,0.00016986,2]
[350393740,1737827445984,-500.0,0.00016986,2]
[350393742,1737827445994,-500.0,0.00016986,2]
[350393744,1737827446004,-500.0,0.00016986,2]
[350393746,1737827446013,-500.0,0.00016986,2]
[350393748,1737827446023,-475.03455195,0.00016986,2]
[350393750,1737827446032,-500.0,0.00016986,2]
[350393752,1737827446041,-618.26,0.00016986,2]
[350393754,1737827446050,-500.0,0.00016986,2]
[350393756,1737827446059,-500.0,0.00016986,2]
[350393758,1737827446068,-872.2,0.00016986,2]
[350393760,1737827446078,-500.0,0.00016986,2]
[350393763,1737827446087,-500.0,0.00016986,2]
[350393766,1737827446098,-500.0,0.00016986,2]
[350393769,1737827446107,-500.0,0.00016986,2]
[350393772,1737827446116,-500.0,0.00016986,2]
[350393774,1737827446126,-500.0,0.00016986,2]
[350393776,1737827446135,-500.0,0.00016986,2]
[350393778,1737827446144,-518.71,0.00016986,2]
[350393780,1737827446153,-500.0,0.00016986,2]
[350393782,1737827446163,-500.0,0.00016986,2]
[350393784,1737827446173,-500.0,0.00016986,2]
[350393786,1737827446182,-500.0,0.00016986,2]
[350393788,1737827446191,-354.41703556,0.00016986,2]
[350393790,1737827446200,-1098.53,0.00016986,2]
[350393792,1737827446209,-500.0,0.00016986,2]
[350393794,1737827446219,-500.0,0.00016986,2]
[350393796,1737827446228,-499.79,0.00016986,2]
[350393798,1737827446237,-1693.23,0.00016986,2]
[350393800,1737827446246,-545.83214331,0.00016986,2]
[350393802,1737827446255,-859.51,0.00016986,2]
[350393804,1737827446265,-2895.04,0.00016986,2]
[350393806,1737827446275,-809.57,0.00016986,2]
[350393808,1737827446284,-500.0,0.00016986,2]
[350393810,1737827446293,-500.0,0.00016986,2]
[350393812,1737827446303,-674.42,0.00016986,2]
[350393814,1737827446312,-1586.72,0.00016986,2]
[350393816,1737827446321,-500.0,0.00016986,2]
[350393818,1737827446331,-1094.96,0.00016986,2]
[350393820,1737827446340,-500.0,0.00016986,2]
[350393822,1737827446350,-573.39,0.00016986,2]
[350393825,1737827446359,-6607.77,0.00016986,2]
[350393827,1737827446369,-500.0,0.00016986,2]
[350393829,1737827446378,-500.0,0.00016986,2]
[350393831,1737827446387,-500.0,0.00016986,2]
[350393833,1737827446396,-1076.16,0.00016986,2]
[350393834,1737827446405,-1422.61,0.00016986,2]
[350393836,1737827446415,-547.14,0.00016986,2]
[350393839,1737827446424,-551.97,0.00016986,2]
[350393840,1737827446433,-506.48,0.00016986,2]
[350393842,1737827446442,-1415.11,0.00016986,2]
[350393844,1737827446451,-500.0,0.00016986,2]
[350393846,1737827446460,-500.0,0.00016986,2]
[350393848,1737827446469,-2552.86,0.00016986,2]
[350393851,1737827446478,-19665.7,0.00016986,2]
[350393852,1737827446487,-500.0,0.00016986,2]
[350393855,1737827446497,-1298.76,0.00016986,2]
[350393857,1737827446506,-1280.97,0.00016986,2]
[350393858,1737827446515,-500.0,0.00016986,2]
[350393860,1737827446524,-673.68,0.00016986,2]
[350393863,1737827446534,-665.58,0.00016986,2]
[350393865,1737827446543,-500.0,0.00016986,2]
[350393867,1737827446552,-556.61,0.00016986,2]
[350393869,1737827446562,-1587.33,0.00016986,2]
[350393871,1737827446572,-500.0,0.00016986,2]
[350393873,1737827446582,-835.55,0.00016986,2]
[350393875,1737827446591,-886.95,0.00016986,2]
[350393877,1737827446602,-690.69,0.00016986,2]
[350393879,1737827446611,-7180.74,0.00016986,2]
[350393881,1737827446620,-907.76,0.00016986,2]
[350393883,1737827446630,-981.99,0.00016986,2]
[350393885,1737827446639,-615.83,0.00016986,2]
[350393887,1737827446649,-50234.94992344,0.00017,2]
[350393889,1737827446658,-14614.42,0.00017,2]
[350393891,1737827446667,-10638.57,0.00017,2]
[350393893,1737827446676,-150.74,0.00017072,2]
[350393894,1737827446685,-2052.0,0.00017072,2]
[350393896,1737827446694,-2304.0,0.00017072,2]
[350393899,1737827446703,-395.0,0.00017072,2]
[350393900,1737827446713,-150.321,0.00017072,2]
[350393902,1737827446722,-600.0,0.00017117,2]
[350393904,1737827446731,-500.0,0.00017123,2]
[350393907,1737827446741,-500.0,0.00017123,2]
[350393909,1737827446750,-500.0,0.00017123,2]
[350393911,1737827446760,-500.0,0.00017123,2]
[350393913,1737827446769,-500.0,0.00017123,2]
[350393915,1737827446778,-500.0,0.00017123,2]
[350393917,1737827446787,-500.0,0.00017123,2]
[350393919,1737827446797,-500.0,0.00017123,2]
[350393921,1737827446807,-500.0,0.00017123,2]
[350393923,1737827446817,-500.0,0.00017123,2]
[350393925,1737827446825,-500.0,0.00017123,2]
[350393927,1737827446835,-500.0,0.00017123,2]
[350393929,1737827446844,-500.0,0.00017123,2]
[350393930,1737827446854,-861.47,0.00017123,2]
[350393933,1737827446863,-500.0,0.00017123,2]
[350393935,1737827446872,-500.0,0.00017123,2]
[350393936,1737827446881,-500.0,0.00017123,2]
[350393939,1737827446891,-500.0,0.00017123,2]
[350393941,1737827446901,-500.0,0.00017123,2]
[350393943,1737827446910,-500.0,0.00017123,2]
[350393945,1737827446924,-500.0,0.00017123,2]
[350393947,1737827446933,-872.2,0.00017123,2]
[350393949,1737827446943,-500.0,0.00017123,2]
[350393950,1737827446952,-500.0,0.00017123,2]
[350393952,1737827446962,-500.0,0.00017123,2]
[350393955,1737827446971,-500.0,0.00017123,2]
[350393957,1737827446981,-500.0,0.00017123,2]
[350393959,1737827446991,-500.0,0.00017123,2]
[350393961,1737827447001,-500.0,0.00017123,2]
[350393963,1737827447011,-518.71,0.00017123,2]
[350393965,1737827447020,-500.0,0.00017123,2]
[350393967,1737827447030,-500.0,0.00017123,2]
[350393969,1737827447039,-500.0,0.00017123,2]
[350393971,1737827447049,-500.0,0.00017123,2]
[350393973,1737827447058,-1098.53,0.00017123,2]
[350393975,1737827447068,-500.0,0.00017123,2]
[350393977,1737827447078,-500.0,0.00017123,2]
[350393979,1737827447088,-1693.23,0.00017123,2]
[350393981,1737827447098,-859.51,0.00017123,2]
[350393983,1737827447107,-2895.04,0.00017123,2]
[350393985,1737827447117,-809.57,0.00017123,2]
[350393987,1737827447126,-500.0,0.00017123,2]
[350393989,1737827447136,-500.0,0.00017123,2]
[350393991,1737827447146,-674.42,0.00017123,2]
[350393993,1737827447155,-1586.72,0.00017123,2]
[350393995,1737827447165,-500.0,0.00017123,2]
[350393997,1737827447174,-1094.96,0.00017123,2]
[350393999,1737827447183,-500.0,0.00017123,2]
[350394001,1737827447193,-573.39,0.00017123,2]
[350394003,1737827447203,-6607.77,0.00017123,2]
[350394005,1737827447212,-500.0,0.00017123,2]
[350394007,1737827447222,-500.0,0.00017123,2]
[350394009,1737827447231,-500.0,0.00017123,2]
[350394011,1737827447240,-1076.16,0.00017123,2]
[350394013,1737827447249,-1422.61,0.00017123,2]
[350394015,1737827447259,-547.14,0.00017123,2]
[350394017,1737827447268,-500.0,0.00017123,2]
[350394019,1737827447277,-551.97,0.00017123,2]
[350394021,1737827447287,-500.0,0.00017123,2]
[350394023,1737827447296,-506.48,0.00017123,2]
[350394025,1737827447306,-1415.11,0.00017123,2]
[350394027,1737827447316,-500.0,0.00017123,2]
[350394029,1737827447325,-150.0,0.00017123,2]
[350394031,1737827447335,-500.0,0.00017123,2]
[350394033,1737827447345,-2552.86,0.00017123,2]
[350394035,1737827447355,-150.0,0.00017123,2]
[350394037,1737827447364,-150.65767604,0.00017123,2]
[350394039,1737827447374,-19665.7,0.00017123,2]
[350394041,1737827447384,-500.0,0.00017123,2]
[350394043,1737827447393,-500.0,0.00017123,2]
[350394045,1737827447403,-1298.76,0.00017123,2]
[350394047,1737827447411,-1280.97,0.00017123,2]
[350394049,1737827447421,-500.0,0.00017123,2]
[350394051,1737827447430,-673.68,0.00017123,2]
[350394053,1737827447439,-665.58,0.00017123,2]
[350394055,1737827447448,-500.0,0.00017123,2]
[350394057,1737827447457,-556.61,0.00017123,2]
[350394059,1737827447467,-1587.33,0.00017123,2]
[350394061,1737827447476,-500.0,0.00017123,2]
[350394063,1737827447485,-500.0,0.00017123,2]
[350394065,1737827447494,-835.55,0.00017123,2]
[350394067,1737827447503,-886.95,0.00017123,2]
[350394069,1737827447513,-690.69,0.00017123,2]
[350394071,1737827447523,-7180.74,0.00017123,2]
[350394074,1737827447532,-907.76,0.00017123,2]
[350394075,1737827447542,-981.99,0.00017123,2]
[350394077,1737827447551,-615.83,0.00017123,2]
[350394080,1737827447561,-467.58422,0.00017123,2]
[350394082,1737827447571,-500.0,0.00017216,2]
[350394084,1737827447581,-633.84006734,0.00017216,2]
[350394086,1737827447590,-500.0,0.00017216,2]
[350394088,1737827447600,-500.0,0.00017216,2]
[350394090,1737827447609,-500.0,0.00017247,2]
[350394092,1737827447619,-352.01039924,0.00017247,2]
[350394093,1737827447630,-500.0,0.00017247,2]
[350394094,1737827447639,-559.91687658,0.00017247,2]
[350394095,1737827447648,-500.0,0.00017247,2]
[350394096,1737827447656,-290.0,0.00017251,2]
[350394097,1737827447666,-290.0,0.00017251,2]
[350394098,1737827447675,-290.0,0.00017251,2]
[350394099,1737827447684,-395.0,0.00017251,2]
[350394100,1737827447694,-395.0,0.00017251,2]
[350394101,1737827447703,-395.0,0.00017251,2]
[350394102,1737827447712,-369.99305824,0.00017254,2]
[350394103,1737827447722,-500.0,0.0001726,2]
[350394104,1737827447730,-500.0,0.0001726,2]
[350394106,1737827447740,-500.0,0.0001726,2]
[350394108,1737827447750,-500.0,0.0001726,2]
[350394110,1737827447759,-500.0,0.0001726,2]
[350394112,1737827447769,-500.0,0.0001726,2]
[350394114,1737827447781,-500.0,0.0001726,2]
[350394116,1737827447790,-500.0,0.0001726,2]
[350394118,1737827447799,-500.0,0.0001726,2]
[350394120,1737827447809,-500.0,0.0001726,2]
[350394122,1737827447818,-500.0,0.0001726,2]
[350394124,1737827447827,-500.0,0.0001726,2]
[350394126,1737827447837,-500.0,0.0001726,2]
[350394128,1737827447847,-861.47,0.0001726,2]
[350394130,1737827447856,-500.0,0.0001726,2]
[350394132,1737827447866,-500.0,0.0001726,2]
[350394134,1737827447875,-500.0,0.0001726,2]
[350394136,1737827447884,-500.0,0.0001726,2]
[350394138,1737827447893,-201.69368085,0.0001726,2]
[350394140,1737827447903,-500.0,0.0001726,2]
[350394142,1737827447913,-500.0,0.0001726,2]
[350394144,1737827447927,-872.2,0.0001726,2]
[350394146,1737827447936,-500.0,0.0001726,2]
[350394148,1737827447945,-500.0,0.0001726,2]
[350394151,1737827447955,-500.0,0.0001726,2]
[350394152,1737827447966,-500.0,0.0001726,2]
[350394154,1737827447976,-500.0,0.0001726,2]
[350394156,1737827447985,-500.0,0.0001726,2]
[350394158,1737827447995,-500.0,0.0001726,2]
[350394160,1737827448005,-518.71,0.0001726,2]
[350394162,1737827448015,-500.0,0.0001726,2]
[350394164,1737827448024,-500.0,0.0001726,2]
[350394166,1737827448033,-500.0,0.0001726,2]
[350394168,1737827448042,-500.0,0.0001726,2]
[350394170,1737827448052,-1098.53,0.0001726,2]
[350394172,1737827448061,-500.0,0.0001726,2]
[350394174,1737827448070,-500.0,0.0001726,2]
[350394176,1737827448079,-1693.23,0.0001726,2]
[350394178,1737827448088,-859.51,0.0001726,2]
[350394180,1737827448098,-2895.04,0.0001726,2]
[350394182,1737827448107,-809.57,0.0001726,2]
[350394184,1737827448117,-500.0,0.0001726,2]
[350394186,1737827448126,-500.0,0.0001726,2]
[350394189,1737827448135,-674.42,0.0001726,2]
[350394191,1737827448145,-1586.72,0.0001726,2]
[350394193,1737827448155,-500.0,0.0001726,2]
[350394195,1737827448164,-1094.96,0.0001726,2]
[350394197,1737827448174,-500.0,0.0001726,2]
[350394199,1737827448183,-573.39,0.0001726,2]
[350394201,1737827448192,-6607.77,0.0001726,2]
[350394203,1737827448201,-500.0,0.0001726,2]
[350394205,1737827448210,-500.0,0.0001726,2]
[350394207,1737827448219,-500.0,0.0001726,2]
[350394209,1737827448230,-1076.16,0.0001726,2]
[350394211,1737827448239,-1422.61,0.0001726,2]
[350394213,1737827448249,-547.14,0.0001726,2]
[350394215,1737827448258,-551.97,0.0001726,2]
[350394217,1737827448267,-506.48,0.0001726,2]
[350394219,1737827448276,-1415.11,0.0001726,2]
[350394221,1737827448285,-500.0,0.0001726,2]
[350394223,1737827448295,-500.0,0.0001726,2]
[350394225,1737827448304,-2552.86,0.0001726,2]